[Event "Gibraltar Challengers B 2019"]
[Site "Caleta"]
[Date "2019.01.30"]
[Round "5"]
[White "Spacapan, Simon"]
[Black "Gostelow, David W"]
[Result "1/2-1/2"]
[ECO "B32"]
[WhiteElo "2061"]
[BlackElo "1850"]
[Annotator "NA RC"]
[PlyCount "101"]
[EventDate "2019.01.18"]
[EventType "swiss"]
[EventCountry "GGB"]
[SourceTitle "playchess.com"]
[Source "ChessBase"]
[SourceQuality "1"]
[TimeControl "6600+10"]

1. e4 {[%emt 0:00:00]} c5 {[%emt 0:00:00]} 2. Nf3 {[%emt 0:00:00]} Nc6 {[%emt 0:00:00]} 3. d4 {[%emt 0:00:00]} cxd4 {[%emt 0:00:00]} 4. Nxd4 {[%emt 0:00:02]} e5 {[%emt 0:00:04]} 5. Nb5 {[%emt 0:00:03]} a6 {[%emt 0:00:06]} 6. Nd6+ {[%emt 0:00:04]} Bxd6 {[%emt 0:00:06]} 7. Qxd6 {[%emt 0:00:06]} Qf6 {[%emt 0:00:02]} 8. Qd1 {[%emt 0:00:37]} Qg6 {[%emt 0:00:06]} 9. Nc3 {[%emt 0:01:09]} Nge7 {[%emt 0:01:54]} 10. Be3 {[%emt 0:01:38]} d5 {[%emt 0:03:37]} 11. Nxd5 {[%emt 0:16:01]} ({Better is} 11. exd5 $14 Nb4 12. Bd3) 11... Nxd5 {[%emt 0:04:14] B32: Sicilian: Löwenthal and Kalashnikov Variations} 12. Qxd5 {[%emt 0:02:20]} O-O {[%emt 0:09:00]} ({Better is} 12... Be6 $11 13. Qd2 Qxe4) 13. f3 {[%emt 0:06:50]} Rd8 {[%emt 0:03:02]} 14. Qc5 {[%emt 0:01:51]} b6 $146 {[%emt 0:28:42]} ({Predecessor:} 14... Be6 15. Rd1 Rxd1+ 16. Kxd1 Bxa2 17. b3 Rc8 18. Qa3 Bb1 19. Qb2 {0-1 (37) Stepanov,A (2381)-Golubka,P (2403) Tula 2010}) 15. Qa3 {[%emt 0:20:00]} Nd4 {[%emt 0:03:30]} 16. Bxd4 {[%emt 0:00:35]} Rxd4 {[%emt 0:00:23]} 17. Qe3 {[%emt 0:08:58]} Bb7 {[%emt 0:15:25]} 18. Kf2 {[%emt 0:03:11]} Rad8 {[%emt 0:02:55]} 19. Bd3 {[%emt 0:06:35]} Qh5 {[%emt 0:00:54]} 20. g4 {[%emt 0:10:08]} Qh4+ {[%emt 0:06:20]} 21. Kg2 {[%emt 0:01:16]} h5 {[%emt 0:07:06]} 22. h3 {[%emt 0:03:12]} Qe7 {[%emt 0:02:14]} 23. Rhd1 {[%emt 0:02:18]} Bc6 {[%emt 0:09:30]} 24. c3 {[%emt 0:02:38]} R4d6 {[%emt 0:00:13]} 25. Bc2 {[%emt 0:00:45]} ({Reject} 25. gxh5 Qh4 $15) 25... Bb5 {[%emt 0:05:11]} 26. Rxd6 {[%emt 0:05:32]} Rxd6 {[%emt 0:00:02]} 27. Rd1 {[%emt 0:00:17]} ({Reject} 27. gxh5 Qd8 $17) 27... hxg4 {[%emt 0:01:03]} 28. hxg4 {[%emt 0:00:37]} Rh6 {[%emt 0:00:29]} 29. Qd2 {[%emt 0:07:53]} Kh7 $1 {[%emt 0:00:54]} 30. Qd8 {[%emt 0:01:50]} Qc5 {[%emt 0:00:58]} 31. Qd2 {[%emt 0:01:51]} Qe7 {[%emt 0:00:10]} 32. Rh1 $14 {[%emt 0:01:39]} Bf1+ {[%emt 0:02:21]} 33. Rxf1 {[%emt 0:02:26]} Qh4 {[%emt 0:00:02]} 34. Qxh6+ {[%emt 0:01:02]} gxh6 {[%emt 0:00:23]} 35. Rd1 {[%emt 0:00:11]} h5 {[%emt 0:00:14]} 36. gxh5 {[%emt 0:00:06]} Qg5+ {[%emt 0:00:12]} 37. Kf2 {[%emt 0:00:07]} Qxh5 {[%emt 0:00:12]} 38. Rg1 {[%emt 0:00:30]} Qh4+ {[%emt 0:00:17]} 39. Rg3 {[%emt 0:00:40]} Qf4 {[%emt 0:00:13]} 40. Rh3+ {[%emt 0:00:01]} Kg7 {[%emt 0:00:12]} 41. Rg3+ {[%emt 0:00:46]} (41. Bb3 {was the only chance.}) 41... Kf8 {[%emt 0:00:10]} 42. Rg2 {[%emt 0:00:02]} Qc1 {[%emt 0:01:05]} 43. Kg3 {[%emt 0:00:01]} Qxb2 {[%emt 0:00:11]} 44. Bd3 {[%emt 0:00:26]} Qxc3 {[%emt 0:00:07]} 45. Bxa6 {[%emt 0:00:01]} Qe3 {[%emt 0:00:46]} 46. Bc4 {[%emt 0:00:53]} Qe1+ {[%emt 0:00:18]} 47. Kg4 {[%emt 0:00:08]} Ke7 {[%emt 0:01:03]} 48. Bd5 {[%emt 0:00:04]} f6 {[%emt 0:00:32]} (48... Qc1 $19 {has better winning chances.} 49. Kg3 Kd6) 49. Kf5 {[%emt 0:00:15]} Qh1 {[%emt 0:00:19]} 50. Rg7+ {[%emt 0:00:03]} Kd6 $17 {[%emt 0:00:01]} 51. Kxf6 {[%emt 0:00:14]} 1/2-1/2

[Event "Gibraltar Challengers B 2019"]
[Site "Caleta"]
[Date "2019.01.30"]
[Round "5"]
[White "Cao Armillas, Jesus"]
[Black "Sidali, Elias Hulleberg"]
[Result "1/2-1/2"]
[ECO "E41"]
[WhiteElo "2048"]
[BlackElo "1783"]
[Annotator "NA RC"]
[PlyCount "72"]
[EventDate "2019.01.18"]
[EventType "swiss"]
[EventCountry "GGB"]
[SourceTitle "playchess.com"]
[Source "ChessBase"]
[SourceQuality "1"]
[TimeControl "6600+10"]

1. d4 {[%emt 0:00:50]} Nf6 {[%emt 0:00:00]} 2. c4 {[%emt 0:00:04]} e6 {[%emt 0:00:01]} 3. Nc3 {[%emt 0:00:03]} Bb4 {[%emt 0:00:07]} 4. e3 {[%emt 0:00:03]} c5 {[%emt 0:00:07]} 5. Bd3 {[%emt 0:00:12]} Nc6 {[%emt 0:00:06]} 6. Nge2 {[%emt 0:01:00]} cxd4 {[%emt 0:00:11]} 7. exd4 {[%emt 0:00:04]} d5 {[%emt 0:00:07]} 8. O-O {[%emt 0:00:20]} ({Predecessor:} 8. c5 O-O {1-0 (31) Kashlinskaya,A (2455)-Kharmunova,N (2199) Sochi 2017}) 8... O-O $146 {[%emt 0:00:08] E41: Nimzo-Indian: Rubinstein: 4...c5 5 Bd3, including Hübner Variation} (8... dxc4 9. Bxc4 O-O 10. a3 Bd6 11. h3 h6 12. Be3 Ne7 13. Qd3 Bd7 14. Rad1 Ned5 15. Bxd5 Nxd5 16. Nxd5 exd5 17. Bf4 Be7 18. Rfe1 Re8 19. Nc3 {½-½ (55) Short,N (2684)-Vaibhav,S (2527) Jakarta 2013}) 9. c5 {[%emt 0:00:53]} b6 {[%emt 0:05:52]} ({Predecessor:} 9... e5 10. a3 Ba5 11. dxe5 Nxe5 12. Bg5 Be6 13. Bc2 Bxc3 14. Nxc3 Ned7 15. Re1 h6 16. Bxf6 Qxf6 {1-0 (31) Kashlinskaya,A (2455)-Kharmunova,N (2199) Sochi 2017}) 10. Qa4 {[%emt 0:18:21]} Bd7 {[%emt 0:10:52]} 11. Bb5 {[%emt 0:01:54]} Bxc3 $1 {[%emt 0:01:28]} 12. Nxc3 {[%emt 0:05:47]} Qc7 {[%emt 0:03:43]} 13. g3 {[%emt 0:10:38]} bxc5 {[%emt 0:00:27]} 14. Bf4 {[%emt 0:00:06]} Qb6 {[%emt 0:01:15]} 15. dxc5 {[%emt 0:01:17]} Qxc5 {[%emt 0:00:09]} 16. Rac1 {[%emt 0:00:33]} a6 {[%emt 0:03:30]} 17. Bxc6 {[%emt 0:10:25]} Bxc6 {[%emt 0:01:41]} 18. Qc2 {[%emt 0:05:58]} Rac8 {[%emt 0:04:08]} 19. Ne4 {[%emt 0:10:56]} Nxe4 {[%emt 0:00:38]} 20. Qxc5 {[%emt 0:00:17]} Nxc5 {[%emt 0:00:17]} 21. Rxc5 {[%emt 0:00:04]} Bb5 {[%emt 0:00:08]} 22. Rfc1 {[%emt 0:00:37]} Bd7 {[%emt 0:01:02]} 23. Bc7 {[%emt 0:02:09]} f6 {[%emt 0:01:31]} 24. f4 {[%emt 0:00:03]} Rfe8 {[%emt 0:01:12]} 25. a3 {[%emt 0:02:09]} d4 {[%emt 0:01:29]} 26. b4 {[%emt 0:00:53]} d3 {[%emt 0:00:44]} 27. Rd1 {[%emt 0:02:48]} Bb5 {[%emt 0:00:35]} 28. a4 {[%emt 0:00:11]} Bxa4 {[%emt 0:00:04]} 29. Rxd3 {[%emt 0:00:05]} Bb5 {[%emt 0:01:15]} 30. Rdc3 {[%emt 0:01:15]} Kf7 {[%emt 0:00:53]} 31. Kf2 {[%emt 0:00:16]} Bd7 {[%emt 0:05:00]} 32. Ke3 {[%emt 0:01:17]} Bb5 {[%emt 0:00:06]} 33. Ke4 {[%emt 0:00:53]} Bd7 {[%emt 0:01:01]} 34. Ke3 {[%emt 0:02:12]} Bb5 {[%emt 0:01:15]} 35. Ke4 {[%emt 0:00:40]} Rh8 {[%emt 0:04:55]} 36. Ke3 {[%emt 0:02:08]} Rhe8 $11 {[%emt 0:00:23]} (36... Rce8 $15) 1/2-1/2

[Event "Gibraltar Challengers B 2019"]
[Site "Caleta"]
[Date "2019.01.30"]
[Round "5"]
[White "Kukic, Boris"]
[Black "Gillis Onieva, Celia"]
[Result "1-0"]
[ECO "B40"]
[WhiteElo "2035"]
[BlackElo "1930"]
[Annotator "NA RC"]
[PlyCount "129"]
[EventDate "2019.01.18"]
[EventType "swiss"]
[EventCountry "GGB"]
[SourceTitle "playchess.com"]
[Source "ChessBase"]
[SourceQuality "1"]
[TimeControl "6600+10"]

1. e4 {[%emt 0:00:09]} e6 {[%emt 0:00:00]} 2. Nf3 {[%emt 0:00:21]} d5 {[%emt 0:00:20]} 3. e5 {[%emt 0:00:27]} c5 {[%emt 0:00:37]} 4. c3 {[%emt 0:00:04]} Nc6 {[%emt 0:00:57]} 5. Bb5 {[%emt 0:00:23]} Bd7 {[%emt 0:07:24]} 6. Ba4 {[%emt 0:00:57] B40: Sicilian: 2...e6, Unusual lines} d4 {[%emt 0:07:56]} (6... Nh6 7. O-O Nf5 8. Bc2 Nh4 9. Nxh4 Qxh4 10. Re1 c4 11. d4 cxd3 12. Bxd3 Bc5 13. g3 Qh3 {1-0 (32) Cicak,S (2568)-Ivanov,S (2536) Sweden 2011}) 7. d3 $146 {[%emt 0:00:10]} ({Predecessor:} 7. O-O Nge7 8. d3 Ng6 9. Re1 Nh4 10. Nbd2 Nf5 11. Nc4 a6 12. Bb3 b5 13. Ncd2 Be7 {1-0 (44) Turikov,V (2153)-Seregina,M (1875) St Petersburg 2017}) 7... Nge7 {[%emt 0:01:55]} 8. Bg5 {[%emt 0:00:36]} Qc7 {[%emt 0:09:30]} 9. O-O {[%emt 0:00:30]} h6 {[%emt 0:05:13]} 10. Bf4 {[%emt 0:00:50]} g5 {[%emt 0:13:53]} 11. Bg3 {[%emt 0:00:10]} Bg7 {[%emt 0:07:42]} 12. Na3 {[%emt 0:00:28]} O-O {[%emt 0:08:44]} 13. cxd4 {[%emt 0:00:19]} Nxd4 {[%emt 0:04:46]} 14. Nxd4 {[%emt 0:00:15]} cxd4 {[%emt 0:00:07]} 15. Rc1 {[%emt 0:00:54]} Bxa4 {[%emt 0:07:30]} 16. Qxa4 {[%emt 0:00:55]} Qd8 {[%emt 0:00:11]} 17. f4 {[%emt 0:00:19]} Nf5 {[%emt 0:01:58]} 18. Nc4 {[%emt 0:01:00]} Nxg3 {[%emt 0:12:59]} (18... Qd5 $11 19. Qb3 f6) 19. hxg3 {[%emt 0:00:11]} f6 {[%emt 0:00:50]} 20. exf6 {[%emt 0:00:58]} Bxf6 {[%emt 0:00:40]} 21. Qb5 {[%emt 0:00:17]} Qe7 {[%emt 0:03:30]} 22. Rce1 {[%emt 0:00:12]} Rac8 {[%emt 0:01:10]} 23. Qa4 {[%emt 0:01:53]} Rc6 {[%emt 0:04:00]} 24. Qb3 {[%emt 0:00:45]} Kh8 {[%emt 0:00:34]} (24... gxf4 $14 25. Rxf4 Bg7) 25. Ne5 {[%emt 0:00:33]} Bxe5 {[%emt 0:00:05]} 26. Rxe5 {[%emt 0:00:20]} Rf5 {[%emt 0:01:34]} 27. Re4 {[%emt 0:00:25]} b6 {[%emt 0:06:10]} 28. Qa4 {[%emt 0:00:37]} Rd6 {[%emt 0:02:38]} 29. Rfe1 {[%emt 0:00:11]} Ra5 {[%emt 0:01:15]} 30. Qb3 {[%emt 0:00:11]} Rad5 {[%emt 0:00:16]} 31. Qd1 {[%emt 0:00:18]} Qf6 {[%emt 0:00:26]} 32. Qg4 {[%emt 0:00:34]} Rf5 {[%emt 0:00:02]} 33. Qh5 {[%emt 0:01:52]} gxf4 {[%emt 0:00:04]} 34. Qe8+ {[%emt 0:00:10]} Qf8 {[%emt 0:00:00]} 35. Qxf8+ {[%emt 0:00:55]} Rxf8 {[%emt 0:00:01]} 36. gxf4 {[%emt 0:00:15]} Rf6 {[%emt 0:00:43]} 37. Kf2 {[%emt 0:00:07]} ({Better is} 37. g3 $16) 37... e5 $14 {[%emt 0:00:09]} 38. g3 {[%emt 0:00:21]} exf4 {[%emt 0:00:06]} 39. gxf4 {[%emt 0:00:05]} Kg7 {[%emt 0:00:05]} 40. Kf3 {[%emt 0:00:07]} Kg6 {[%emt 0:00:15]} 41. Re7 {[%emt 0:00:10]} Rf7 {[%emt 0:00:08]} 42. R7e5 {[%emt 0:01:05]} Rf5 {[%emt 0:00:23]} 43. Rg1+ {[%emt 0:00:17]} Kf6 {[%emt 0:00:03]} 44. Ke4 {[%emt 0:00:05]} Re6 {[%emt 0:00:13]} 45. Rg6+ {[%emt 0:00:33]} Kxg6 {[%emt 0:00:01]} 46. Rxe6+ {[%emt 0:00:07]} Rf6 {[%emt 0:00:01]} 47. Re8 {[%emt 0:00:39]} h5 {[%emt 0:00:32]} 48. Rh8 {[%emt 0:00:29]} Rf7 {[%emt 0:00:09]} 49. Rg8+ {[%emt 0:00:35]} Kf6 {[%emt 0:00:01]} 50. Kxd4 {[%emt 0:00:37]} Kf5 {[%emt 0:00:20]} 51. Rg5+ {[%emt 0:00:08]} Kxf4 {[%emt 0:00:01]} 52. Rxh5 {[%emt 0:00:13]} Rd7+ 53. Kc4 {[%emt 0:00:19]} Ke3 {[%emt 0:00:32]} 54. Rh3+ {[%emt 0:00:20]} Kf4 {[%emt 0:00:01]} 55. b4 {[%emt 0:00:09]} Rd6 {[%emt 0:00:14]} 56. a4 {[%emt 0:00:20]} a5 {[%emt 0:00:07]} 57. bxa5 {[%emt 0:00:12]} bxa5 {[%emt 0:00:01]} 58. Rh8 {[%emt 0:00:18]} Ke3 {[%emt 0:00:06]} 59. Re8+ {[%emt 0:00:12]} Kd2 {[%emt 0:00:02]} 60. d4 {[%emt 0:00:06]} Kc2 {[%emt 0:00:30]} 61. Re2+ {[%emt 0:00:07]} Kd1 {[%emt 0:00:05]} 62. Rh2 {[%emt 0:00:07]} Kc1 {[%emt 0:00:12]} 63. d5 {[%emt 0:00:06]} Rb6 {[%emt 0:00:07]} 64. Kc5 {[%emt 0:00:22]} Rb4 {[%emt 0:00:03]} 65. d6 {[%emt 0:00:15]} 1-0

[Event "Gibraltar Challengers B 2019"]
[Site "Caleta"]
[Date "2019.01.30"]
[Round "5"]
[White "Fegan, Chris"]
[Black "Obiamiwe, Paul"]
[Result "0-1"]
[ECO "E94"]
[WhiteElo "2024"]
[BlackElo "1903"]
[Annotator "NA RC"]
[PlyCount "61"]
[EventDate "2019.01.18"]
[EventType "swiss"]
[EventCountry "GGB"]
[SourceTitle "playchess.com"]
[Source "ChessBase"]
[SourceQuality "1"]
[TimeControl "6600+10"]

1. Nf3 {[%emt 0:00:00]} Nf6 {[%emt 0:00:05]} 2. d4 {[%emt 0:00:01]} g6 {[%emt 0:00:06]} 3. c4 {[%emt 0:00:05]} Bg7 {[%emt 0:00:06]} 4. Nc3 {[%emt 0:00:04]} d6 {[%emt 0:00:11]} 5. e4 {[%emt 0:00:03]} O-O {[%emt 0:00:15]} 6. Be2 {[%emt 0:00:02] LiveBook: 40115 Games} Nbd7 {[%emt 0:00:59]} 7. O-O {[%emt 0:00:04]} e5 {[%emt 0:00:24]} 8. d5 {[%emt 0:04:36]} Nc5 {[%emt 0:00:08]} 9. Qc2 {[%emt 0:00:03]} a5 {[%emt 0:00:04]} 10. Rb1 $2 {[%emt 0:01:32]} (10. Ne1 $1 $11) 10... Ncxe4 {[%emt 0:00:55]} 11. Nxe4 {[%emt 0:03:31]} Nxe4 {[%emt 0:00:06]} 12. b4 {[%emt 0:09:16]} axb4 {[%emt 0:03:52]} 13. Rxb4 {[%emt 0:00:09]} Nc5 {[%emt 0:00:51]} 14. Be3 {[%emt 0:03:09]} Na6 {[%emt 0:09:01]} 15. Rb3 {[%emt 0:02:20]} f5 {[%emt 0:00:22]} 16. g3 {[%emt 0:11:58]} f4 {[%emt 0:02:31]} 17. gxf4 {[%emt 0:00:19]} exf4 {[%emt 0:00:03]} 18. Bd4 {[%emt 0:00:14]} Bxd4 {[%emt 0:01:11]} 19. Nxd4 {[%emt 0:00:14]} Nc5 {[%emt 0:00:45]} 20. Rc3 {[%emt 0:00:23]} Qf6 {[%emt 0:03:11]} 21. Rd1 {[%emt 0:05:51]} Bd7 {[%emt 0:04:34]} 22. Kh1 {[%emt 0:02:01]} Rfe8 {[%emt 0:05:05]} 23. Bf3 {[%emt 0:00:20]} Bh3 {[%emt 0:03:11]} 24. Bg2 {[%emt 0:09:08]} Qxd4 {[%emt 0:01:30]} 25. Bxh3 {[%emt 0:01:14]} Qe4+ {[%emt 0:01:02]} 26. Kg1 {[%emt 0:02:55]} Qxc2 {[%emt 0:00:35]} 27. Rxc2 {[%emt 0:00:01]} Ra3 {[%emt 0:00:12]} 28. Kg2 $19 {[%emt 0:00:32]} Re5 {[%emt 0:03:18]} 29. Rd4 {[%emt 0:02:11]} Rg5+ {[%emt 0:00:20]} 30. Kf1 {[%emt 0:00:07]} Rxh3 {[%emt 0:00:04]} 31. Ke1 {[%emt 0:00:22]} 0-1

[Event "Gibraltar Challengers B 2019"]
[Site "Caleta"]
[Date "2019.01.30"]
[Round "5"]
[White "Herzwurm, Robert"]
[Black "Nandi, Robin J"]
[Result "0-1"]
[ECO "C52"]
[WhiteElo "2021"]
[BlackElo "1903"]
[Annotator "NA RC"]
[PlyCount "50"]
[EventDate "2019.01.18"]
[EventType "swiss"]
[EventCountry "GGB"]
[SourceTitle "playchess.com"]
[Source "ChessBase"]
[SourceQuality "1"]
[TimeControl "6600+10"]

1. e4 {[%emt 0:00:00]} e5 {[%emt 0:01:21]} 2. Nf3 {[%emt 0:00:02]} Nc6 {[%emt 0:00:08]} 3. Bc4 {[%emt 0:00:08]} Bc5 {[%emt 0:00:12]} 4. b4 {[%emt 0:00:06]} Bxb4 {[%emt 0:00:07]} 5. c3 {[%emt 0:00:08]} Ba5 {[%emt 0:00:36]} 6. d4 {[%emt 0:00:41]} exd4 {[%emt 0:01:44]} 7. O-O {[%emt 0:01:19]} Nf6 {[%emt 0:01:14]} 8. e5 {[%emt 0:12:35]} d5 $1 {[%emt 0:00:09]} 9. exf6 {[%emt 0:09:07]} dxc4 {[%emt 0:00:03]} 10. fxg7 {[%emt 0:18:49]} Rg8 {[%emt 0:00:32]} 11. Ng5 {[%emt 0:24:25]} Rxg7 {[%emt 0:17:15]} 12. Re1+ {[%emt 0:09:38]} Be6 {[%emt 0:00:55]} 13. Nxe6 {[%emt 0:24:10]} fxe6 {[%emt 0:00:03]} 14. Rxe6+ {[%emt 0:00:11]} Kd7 {[%emt 0:00:15]} 15. Re4 {[%emt 0:00:27]} Qf6 {[%emt 0:00:43]} 16. cxd4 {[%emt 0:03:26]} Rf8 {[%emt 0:02:48]} 17. Qe2 {[%emt 0:04:40]} Nxd4 {[%emt 0:02:29]} 18. Rxd4+ {[%emt 0:00:34]} Qxd4 {[%emt 0:00:43]} 19. Bb2 {[%emt 0:00:18]} c3 {[%emt 0:00:54]} 20. Nxc3 {[%emt 0:00:10]} Bxc3 {[%emt 0:04:30]} 21. Rd1 {[%emt 0:00:21]} Bxb2 {[%emt 0:00:07]} 22. Qb5+ {[%emt 0:00:36]} Kc8 {[%emt 0:01:28]} 23. Rxd4 {[%emt 0:01:02]} Bxd4 {[%emt 0:00:02]} 24. Qe2 {[%emt 0:00:23]} Bxf2+ {[%emt 0:06:47]} 25. Kh1 {[%emt 0:00:06]} Bb6 $19 {[%emt 0:00:29]} 0-1

[Event "Gibraltar Challengers B 2019"]
[Site "Caleta"]
[Date "2019.01.30"]
[Round "5"]
[White "Hassomal Daswani, Birjkumar"]
[Black "Ungureanu, Sandu"]
[Result "0-1"]
[ECO "C44"]
[WhiteElo "2008"]
[BlackElo "2057"]
[Annotator "NA RC"]
[PlyCount "68"]
[EventDate "2019.01.18"]
[EventType "swiss"]
[EventCountry "GGB"]
[SourceTitle "playchess.com"]
[Source "ChessBase"]
[SourceQuality "1"]
[TimeControl "6600+10"]

1. e4 {[%emt 0:00:00]} d6 {[%emt 0:00:14]} 2. d4 {[%emt 0:00:58]} Nc6 {[%emt 0:00:34]} 3. Nf3 {[%emt 0:00:43]} e5 {[%emt 0:00:23]} 4. c3 {[%emt 0:01:08]} exd4 {[%emt 0:00:27]} 5. cxd4 {[%emt 0:00:15]} Nf6 {[%emt 0:01:38]} 6. Nc3 {[%emt 0:00:18] C44: Ponziani Opening and Scotch Gambit} d5 {[%emt 0:00:00]} (6... Be7 7. Bd3 Bg4 8. Be3 O-O 9. h3 Bh5 10. Qb3 Rb8 11. g4 Bg6 12. d5 Na5 13. Qd1 c5 14. Nd2 b5 {½-½ (31) Saim,M (2088)-Haddouche,M (2524) Algiers 2015}) 7. e5 {[%emt 0:01:12]} Ne4 {[%emt 0:00:02]} 8. Bb5 $146 {[%emt 0:00:39]} ({Predecessor:} 8. a3 Bg4 9. Be2 Be7 10. Be3 O-O 11. O-O Qd7 12. Qc2 Nxc3 13. bxc3 f6 14. c4 fxe5 15. cxd5 Bxf3 16. Bxf3 Nxd4 17. Bxd4 exd4 18. Qb3 Bd6 {½-½ (19) Loos,U (2033)-Jurkic,B (2090) Germany 2012}) 8... Nxc3 {[%emt 0:00:41]} 9. bxc3 {[%emt 0:00:34]} Be7 {[%emt 0:01:49]} 10. O-O {[%emt 0:00:27]} O-O {[%emt 0:00:07]} 11. h3 {[%emt 0:01:39]} Bf5 {[%emt 0:02:06]} 12. a4 {[%emt 0:00:32]} Na5 {[%emt 0:00:44]} 13. Re1 {[%emt 0:04:16]} c6 {[%emt 0:01:00]} 14. Bf1 {[%emt 0:00:48]} a6 {[%emt 0:00:10]} 15. Ba3 {[%emt 0:00:31]} Bxa3 {[%emt 0:03:07]} 16. Rxa3 {[%emt 0:00:07]} b5 {[%emt 0:00:09]} 17. axb5 {[%emt 0:01:24]} axb5 {[%emt 0:00:09]} 18. Qa1 {[%emt 0:02:14]} Nc4 {[%emt 0:01:02]} 19. Bxc4 {[%emt 0:00:30]} dxc4 {[%emt 0:00:45]} 20. Qa2 {[%emt 0:02:42]} Rxa3 {[%emt 0:00:22]} 21. Qxa3 {[%emt 0:00:06]} Qd5 {[%emt 0:00:21]} 22. Nh4 {[%emt 0:06:12]} Bd3 {[%emt 0:05:32]} 23. g3 {[%emt 0:04:16]} Be4 {[%emt 0:04:30]} 24. Qc1 {[%emt 0:02:39]} h6 {[%emt 0:02:59]} 25. Qe3 {[%emt 0:00:27]} Bh7 {[%emt 0:10:51]} 26. Ng2 {[%emt 0:01:00]} Ra8 {[%emt 0:00:55]} 27. Nf4 {[%emt 0:01:33]} Qd7 {[%emt 0:01:22]} 28. e6 {[%emt 0:01:08]} fxe6 {[%emt 0:00:29]} 29. Qxe6+ {[%emt 0:00:15]} Qxe6 {[%emt 0:00:14]} 30. Rxe6 {[%emt 0:00:22]} Ra1+ {[%emt 0:04:29]} 31. Kg2 {[%emt 0:00:24]} b4 {[%emt 0:00:16]} 32. cxb4 {[%emt 0:09:14] [#]} c3 $1 {[%emt 0:02:15]} 33. Kf3 {[%emt 0:00:17]} c2 {[%emt 0:00:15]} 34. Ne2 {[%emt 0:00:37]} Bd3 $19 {[%emt 0:00:12] Ke4 [%emt 00:01:19]} 0-1

[Event "Gibraltar Challengers B 2019"]
[Site "Caleta"]
[Date "2019.01.30"]
[Round "5"]
[White "Vinal Gutierrez, Pedro"]
[Black "Dasaolu, Rotimi"]
[Result "1/2-1/2"]
[ECO "A46"]
[WhiteElo "1997"]
[BlackElo "2038"]
[Annotator "NA RC"]
[PlyCount "46"]
[EventDate "2019.01.18"]
[EventType "swiss"]
[EventCountry "GGB"]
[SourceTitle "playchess.com"]
[Source "ChessBase"]
[SourceQuality "1"]
[TimeControl "6600+10"]

1. d4 {[%emt 0:00:00]} Nf6 {[%emt 0:06:23]} 2. Bf4 {[%emt 0:00:12]} d6 {[%emt 0:01:26]} 3. e3 {[%emt 0:00:20]} Nbd7 {[%emt 0:00:18]} 4. Nf3 {[%emt 0:00:47]} Nh5 {[%emt 0:01:22] A46: 1 d4 Nf6 2 Nf3 e6: Torre, London and Colle Systems} 5. Bg5 {[%emt 0:02:31]} h6 {[%emt 0:00:05]} 6. Bh4 {[%emt 0:00:11]} g5 {[%emt 0:00:21]} 7. Nfd2 {[%emt 0:00:59] LiveBook: 15 Games} Ndf6 {[%emt 0:02:15]} 8. Bg3 {[%emt 0:02:38]} (8. Be2 Ng7 9. Bg3 Nf5 10. Bd3 Bg7 11. c3 e6 12. Na3 a6 13. Nc2 Qe7 14. e4 Nxg3 15. hxg3 e5 {½-½ (15) Pikula,D (2486)-Bauer,C (2646) Zuerich 2018}) 8... Bg7 {[%emt 0:00:55]} 9. Bc4 $146 {[%emt 0:02:51]} ({Predecessor:} 9. Nc3 Bf5 10. Bd3 Bxd3 11. cxd3 c6 12. Nde4 {0-1 (81) Terrieux,K (2500)-Mirzoev,E (2496) Orsay 2018}) 9... Nxg3 {[%emt 0:00:17]} 10. hxg3 {[%emt 0:00:18]} c6 {[%emt 0:00:32]} 11. c3 {[%emt 0:00:50]} Qc7 {[%emt 0:02:07]} 12. Bd3 {[%emt 0:03:29]} e5 {[%emt 0:02:21]} 13. Na3 {[%emt 0:01:29]} O-O {[%emt 0:01:43]} 14. dxe5 {[%emt 0:02:44]} dxe5 {[%emt 0:00:04]} 15. e4 {[%emt 0:00:24]} Rd8 {[%emt 0:02:40]} 16. Qe2 {[%emt 0:01:57]} b5 {[%emt 0:00:19]} 17. Nb3 {[%emt 0:04:05]} a5 {[%emt 0:01:36]} 18. Rd1 $17 {[%emt 0:02:55]} Bg4 {[%emt 0:02:08]} 19. f3 {[%emt 0:00:43]} Be6 {[%emt 0:00:02]} 20. O-O {[%emt 0:01:56]} Nd7 {[%emt 0:06:17]} 21. Qf2 {[%emt 0:03:09]} Bf8 {[%emt 0:00:47]} 22. Kh2 {[%emt 0:01:28]} a4 {[%emt 0:00:58]} 23. Nc1 {[%emt 0:00:41]} Bc5 {[%emt 0:02:17]} 1/2-1/2

[Event "Gibraltar Challengers B 2019"]
[Site "Caleta"]
[Date "2019.01.30"]
[Round "5"]
[White "Probst, Alexander"]
[Black "Alami, Halim"]
[Result "1-0"]
[ECO "C42"]
[WhiteElo "1976"]
[BlackElo "2059"]
[Annotator "NA RC"]
[PlyCount "79"]
[EventDate "2019.01.18"]
[EventType "swiss"]
[EventCountry "GGB"]
[SourceTitle "playchess.com"]
[Source "ChessBase"]
[SourceQuality "1"]
[TimeControl "6600+10"]

{[%evp 8,78,19,-24,0,32767,-5,0,32767,-6,-6,32767,32767,52,32767,41,26,32767,26,32767,32767,-52,32767,32767,32767,70,32767,32767,32767,215,325,32767,32767,1062,910,32767,32767,32767,408,469,351,32767,32767,300,32767,32767,32767,32767,32767,32767,32767,32767,982,1202,1088,1216,1144,1113,32767,1773,1749,2770,6736,29984,29990,29982,29988,29988,29984,29991,29991,29992,29992]} 1. e4 {[%emt 0:00:00]} e5 {[%emt 0:10:31]} 2. Nf3 {[%emt 0:00:38]} Nf6 {[%emt 0:00:12]} 3. Nc3 {[%emt 0:00:59]} Bb4 {[%emt 0:00:37]} 4. Bc4 {[%emt 0:01:32]} d6 {[%emt 0:01:12]} 5. h3 {[%emt 0:03:30]} O-O {[%emt 0:01:07]} 6. d3 {[%emt 0:00:30]} c6 {[%emt 0:02:31]} 7. O-O {[%emt 0:02:06]} d5 {[%emt 0:03:12]} 8. exd5 {[%emt 0:00:37]} cxd5 {[%emt 0:00:35]} 9. Bb3 {[%emt 0:00:12]} Bxc3 {[%emt 0:06:04]} 10. bxc3 {[%emt 0:00:21]} Qc7 {[%emt 0:00:55]} 11. Bg5 {[%emt 0:03:05]} Be6 {[%emt 0:01:14]} 12. Re1 {[%emt 0:03:11]} Nfd7 {[%emt 0:02:19]} 13. Qd2 {[%emt 0:06:40]} Nc6 {[%emt 0:02:07]} 14. d4 {[%emt 0:02:44]} f6 {[%emt 0:00:21]} 15. Bf4 {[%emt 0:01:27]} exf4 {[%emt 0:04:46]} 16. Rxe6 {[%emt 0:00:16]} Nb6 {[%emt 0:00:19]} 17. Rae1 {[%emt 0:01:06]} Kf7 {[%emt 0:02:51]} 18. Qd3 {[%emt 0:01:25]} g6 {[%emt 0:00:14]} (18... Kg8 {was worth a try.} 19. c4 dxc4) 19. c4 {[%emt 0:00:53]} Ne5 {[%emt 0:08:25]} 20. dxe5 {[%emt 0:11:04]} Kxe6 {[%emt 0:02:13]} 21. cxd5+ {[%emt 0:00:35]} Kd7 {[%emt 0:00:17]} 22. e6+ {[%emt 0:01:04]} Ke7 {[%emt 0:00:55]} 23. c4 {[%emt 0:04:51]} Rac8 {[%emt 0:00:15]} 24. Re4 {[%emt 0:11:34]} Qd6 {[%emt 0:13:42]} 25. Nd4 {[%emt 0:00:44]} a6 {[%emt 0:00:33]} 26. Ne2 {[%emt 0:00:06]} g5 {[%emt 0:13:09]} 27. Nd4 {[%emt 0:00:41]} f5 {[%emt 0:02:32]} 28. Re2 {[%emt 0:01:35]} f3 {[%emt 0:07:49]} 29. Nxf3 {[%emt 0:03:08]} Qf4 {[%emt 0:10:11]} 30. g3 {[%emt 0:02:48]} Qc1+ {[%emt 0:01:30]} 31. Kg2 {[%emt 0:01:11]} Qa3 {[%emt 0:02:18]} 32. Nxg5 {[%emt 0:00:36]} Nxc4 {[%emt 0:03:54]} 33. Qd4 {[%emt 0:02:25]} Rg8 {[%emt 0:01:58]} 34. Nf7 {[%emt 0:01:50]} Nd6 {[%emt 0:01:06]} 35. Qh4+ {[%emt 0:00:12]} Ke8 {[%emt 0:01:01]} 36. Qxh7 {[%emt 0:01:39]} Rf8 {[%emt 0:00:12]} 37. Ne5 {[%emt 0:01:10]} Rf6 {[%emt 0:00:59]} 38. Nd7 {[%emt 0:01:35]} Ne4 {[%emt 0:00:13]} 39. Nxf6+ {[%emt 0:00:28]} Nxf6 {[%emt 0:00:02]} 40. Qf7+ {[%emt 0:00:15]} 1-0